[Event "Marienbad A2-GM 2024"]
[Site "Marianske Lazne"]
[Date "2024.01.20"]
[Round "9.6"]
[White "Nguyen, Alex Dac-Vuong"]
[Black "Morris, James"]
[Result "1/2-1/2"]
[ECO "C11"]
[WhiteElo "2347"]
[BlackElo "2416"]
[Annotator "RC"]
[PlyCount "157"]
[EventDate "2024.01.10"]
[EventType "tourn"]
[EventCountry "CZE"]
[SourceTitle "playchess.com"]
[Source "ChessBase"]
[SourceQuality "1"]
[TimeControl "40/5400+30:1800+30"]

1. e4 {[%emt 0:01:19]} e6 {[%emt 0:12:40]} 2. d4 {[%emt 0:00:04]} d5 {[%emt 0:00:02]} 3. Nc3 {[%emt 0:00:04]} Nf6 {[%emt 0:00:27]} 4. e5 {[%emt 0:00:06]} Nfd7 {[%emt 0:00:03]} 5. f4 {[%emt 0:00:06]} c5 {[%emt 0:00:02]} 6. Nf3 {[%emt 0:00:07]} Nc6 {[%emt 0:00:04]} 7. Be3 {[%emt 0:00:06]} Qb6 {[%emt 0:01:32]} 8. Na4 {[%emt 0:02:27]} Qa5+ {[%emt 0:00:04]} 9. c3 {[%emt 0:00:05]} b6 {[%emt 0:00:19]} 10. Bd2 {[%emt 0:05:17]} c4 {[%emt 0:15:34]} 11. b4 {[%emt 0:00:23]} Nxb4 {[%emt 0:00:12]} 12. cxb4 {[%emt 0:00:05]} Bxb4 {[%emt 0:00:05]} 13. Qc2 {[%emt 0:00:09]} Bxd2+ {[%emt 0:02:37]} 14. Nxd2 {[%emt 0:00:47]} b5 {[%emt 0:00:09]} 15. Nc3 {[%emt 0:00:06]} b4 {[%emt 0:00:05]} 16. Nce4 {[%emt 0:04:22]} dxe4 {[%emt 0:02:49]} 17. Nxc4 {[%emt 0:10:39]} b3+ {[%emt 0:07:37]} 18. Nxa5 {[%emt 0:00:06]} bxc2 {[%emt 0:00:04]} 19. Rc1 {[%emt 0:00:54]} Nb6 {[%emt 0:01:50]} 20. g3 {[%emt 0:19:30]} f5 {[%emt 0:07:29]} 21. Rxc2 {[%emt 0:24:00]} Bd7 {[%emt 0:01:15]} 22. Kd2 {[%emt 0:05:35]} Ke7 {[%emt 0:05:45]} 23. Ba6 {[%emt 0:00:14]} Rab8 {[%emt 0:05:51]} 24. Rhc1 {[%emt 0:07:42]} Nd5 {[%emt 0:05:40]} 25. Bb7 {[%emt 0:01:25]} h6 {[%emt 0:05:30]} 26. Bxd5 {[%emt 0:04:18]} exd5 {[%emt 0:00:02]} 27. Nc6+ {[%emt 0:00:44]} Bxc6 {[%emt 0:00:06]} 28. Rxc6 {[%emt 0:00:04]} Rb2+ {[%emt 0:01:10]} 29. R1c2 {[%emt 0:00:07]} Rhb8 {[%emt 0:00:10]} 30. Rc7+ {[%emt 0:00:54]} Kf8 {[%emt 0:00:43]} 31. R7c5 {[%emt 0:03:44]} R8b5 {[%emt 0:04:18]} 32. Rxb5 {[%emt 0:00:04]} Rxb5 {[%emt 0:00:01]} 33. Rc8+ {[%emt 0:00:07]} Ke7 {[%emt 0:01:44]} 34. Rc7+ {[%emt 0:00:11]} Ke6 {[%emt 0:00:03]} 35. g4 {[%emt 0:02:19]} fxg4 {[%emt 0:02:20]} 36. Rxg7 {[%emt 0:00:07]} Rb2+ {[%emt 0:00:25]} 37. Ke3 {[%emt 0:00:21]} Rxa2 {[%emt 0:03:29]} 38. Rg6+ {[%emt 0:01:40]} Kf7 {[%emt 0:01:09]} 39. f5 {[%emt 0:01:01]} Ra3+ {[%emt 0:01:21]} 40. Kf4 {[%emt 0:01:13]} Rf3+ {[%emt 0:13:01]} 41. Kxg4 {[%emt 0:30:14]} h5+ {[%emt 0:30:09]} 42. Kg5 {[%emt 0:00:00]} e3 {[%emt 0:00:00]} 43. e6+ {[%emt 0:00:00]} Ke7 {[%emt 0:00:00]} 44. Rg7+ {[%emt 0:00:00]} Kd6 {[%emt 0:00:00]} 45. e7 {[%emt 0:00:00]} Kd7 {[%emt 0:00:00]} 46. Kf6 {[%emt 0:00:00]} e2 {[%emt 0:00:00]} 47. e8=Q+ {[%emt 0:00:00]} Kxe8 {[%emt 0:00:00]} 48. Re7+ {[%emt 0:00:00]} Kd8 {[%emt 0:00:00]} 49. Rxe2 {[%emt 0:00:00]} a5 {[%emt 0:00:00]} 50. Ra2 {[%emt 0:00:00]} Rf4 {[%emt 0:00:00]} 51. Ke5 {[%emt 0:00:00]} Rh4 {[%emt 0:00:00]} 52. Kxd5 {[%emt 0:00:00]} Ke7 {[%emt 0:00:00]} 53. Ke5 {[%emt 0:00:00]} Rh3 {[%emt 0:00:00]} 54. Rxa5 {[%emt 0:00:00]} Rxh2 {[%emt 0:00:00]} 55. Ra7+ {[%emt 0:00:00]} Ke8 {[%emt 0:00:00]} 56. Ke6 {[%emt 0:00:07]} Re2+ {[%emt 0:00:00]} 57. Kf6 {[%emt 0:00:04]} h4 {[%emt 0:00:00]} 58. Rh7 {[%emt 0:00:06]} Rh2 {[%emt 0:00:00]} 59. Rh8+ {[%emt 0:04:34]} Kd7 {[%emt 0:00:00]} 60. Kg7 {[%emt 0:00:05]} h3 {[%emt 0:00:00]} 61. f6 {[%emt 0:00:08]} Rg2+ {[%emt 0:00:00]} 62. Kf8 {[%emt 0:00:04]} h2 {[%emt 0:00:00]} 63. f7 {[%emt 0:00:47]} Kd8 {[%emt 0:00:00]} 64. Rh3 {[%emt 0:03:12]} Kd7 {[%emt 0:00:00]} 65. Rh5 {[%emt 0:00:07]} Kd8 {[%emt 0:00:00]} 66. Rd5+ {[%emt 0:00:32]} Kc7 {[%emt 0:00:00]} 67. Rc5+ {[%emt 0:04:10]} Kd7 {[%emt 0:00:00]} 68. Rd5+ {[%emt 0:00:14]} Kc7 {[%emt 0:00:00]} 69. Ke8 {[%emt 0:00:41]} Re2+ {[%emt 0:00:00]} 70. Re5 {[%emt 0:00:03]} h1=Q {[%emt 0:00:00]} 71. Rxe2 {[%emt 0:00:10]} Qa8+ {[%emt 0:00:00]} 72. Ke7 {[%emt 0:00:05]} Qd8+ {[%emt 0:00:00]} 73. Ke6 {[%emt 0:00:02]} Qd7+ {[%emt 0:00:00]} 74. Kf6 {[%emt 0:00:32]} Qxd4+ {[%emt 0:00:00]} 75. Kg6 {[%emt 0:00:57]} Qg4+ {[%emt 0:00:00]} 76. Kf6 {[%emt 0:00:25]} Qxe2 {[%emt 0:00:00]} 77. f8=Q {[%emt 0:00:04]} Qf3+ {[%emt 0:00:00]} 78. Kg7 {[%emt 0:00:07]} Qxf8+ {[%emt 0:00:00]} 79. Kxf8 1/2-1/2

[Event "Marienbad A2-GM 2024"]
[Site "Marianske Lazne"]
[Date "2024.01.20"]
[Round "9.7"]
[White "Braeuer, Franz"]
[Black "Raczek, Krzysztof"]
[Result "1-0"]
[ECO "B45"]
[WhiteElo "2428"]
[BlackElo "2347"]
[Annotator "RC"]
[PlyCount "81"]
[EventDate "2024.01.10"]
[EventType "tourn"]
[EventCountry "CZE"]
[SourceTitle "playchess.com"]
[Source "ChessBase"]
[SourceQuality "1"]
[TimeControl "40/5400+30:1800+30"]

1. e4 {[%emt 0:00:03]} c5 {[%emt 0:00:07]} 2. Nf3 {[%emt 0:00:09]} Nc6 {[%emt 0:00:07]} 3. Nc3 {[%emt 0:00:19]} e6 {[%emt 0:00:54]} 4. d4 {[%emt 0:00:04]} cxd4 {[%emt 0:00:05]} 5. Nxd4 {[%emt 0:00:03]} Nf6 {[%emt 0:00:06]} 6. Ndb5 {[%emt 0:00:28]} Bc5 {[%emt 0:00:10]} 7. Bf4 {[%emt 0:00:25]} O-O {[%emt 0:00:06]} 8. Bc7 {[%emt 0:00:06]} Qe7 {[%emt 0:00:10]} 9. Bd6 {[%emt 0:00:04]} Bxd6 {[%emt 0:00:06]} 10. Qxd6 {[%emt 0:00:04]} Qd8 {[%emt 0:00:04]} 11. O-O-O {[%emt 0:00:22]} a6 {[%emt 0:00:11]} 12. Nd4 {[%emt 0:01:01]} Ne7 {[%emt 0:00:02]} 13. Bd3 {[%emt 0:09:05]} Ne8 {[%emt 0:04:57]} 14. Qg3 {[%emt 0:00:33]} b5 {[%emt 0:01:15]} 15. e5 {[%emt 0:03:29]} f5 {[%emt 0:18:18]} 16. Nxe6 {[%emt 0:13:44]} dxe6 {[%emt 0:03:21]} 17. Be4 {[%emt 0:00:10]} Qxd1+ {[%emt 0:00:28]} 18. Rxd1 {[%emt 0:00:19]} fxe4 {[%emt 0:00:04]} 19. Nxe4 {[%emt 0:02:28]} Nd5 {[%emt 0:08:12]} 20. Qb3 {[%emt 0:03:40]} Nec7 {[%emt 0:08:07]} 21. g3 {[%emt 0:02:40]} Bb7 {[%emt 0:06:04]} 22. Nd6 {[%emt 0:01:41]} Bc6 {[%emt 0:03:53]} 23. f4 a5 {[%emt 0:14:32]} 24. Rd4 {[%emt 0:15:31]} a4 {[%emt 0:04:10]} 25. Qd3 {[%emt 0:00:29]} Ne7 {[%emt 0:09:02]} 26. a3 {[%emt 0:07:43]} Be8 {[%emt 0:04:52]} 27. Qc3 {[%emt 0:12:52]} Ned5 {[%emt 0:01:41]} 28. Qd2 {[%emt 0:00:51]} Bg6 {[%emt 0:02:32]} 29. g4 {[%emt 0:04:36]} Ne7 {[%emt 0:00:29]} 30. Qg2 {[%emt 0:02:06]} Rab8 {[%emt 0:05:07]} 31. h4 {[%emt 0:01:50]} h5 {[%emt 0:02:50]} 32. gxh5 {[%emt 0:08:07]} Bxh5 {[%emt 0:00:01]} 33. Qg5 Nf5 {[%emt 0:00:58]} 34. Rd2 {[%emt 0:02:10]} Bf7 {[%emt 0:03:16]} 35. h5 Ne8 {[%emt 0:00:57]} 36. Ne4 {[%emt 0:04:39]} Kh8 {[%emt 0:00:34]} 37. Rd7 {[%emt 0:02:12]} b4 {[%emt 0:00:37]} 38. axb4 {[%emt 0:01:36]} Nh6 {[%emt 0:00:32]} 39. Qe7 {[%emt 0:02:30]} Kg8 {[%emt 0:00:19]} 40. c3 {[%emt 0:01:06]} Bxh5 {[%emt 0:00:32]} 41. Nf6+ {[%emt 0:06:18]} 1-0

[Event "Marienbad A2-GM 2024"]
[Site "Marianske Lazne"]
[Date "2024.01.20"]
[Round "9.8"]
[White "Can, Isik"]
[Black "Lalic, Bogdan"]
[Result "1/2-1/2"]
[ECO "C54"]
[WhiteElo "2500"]
[BlackElo "2349"]
[Annotator "ChessBase"]
[PlyCount "84"]
[EventDate "2024.01.10"]
[EventType "tourn"]
[EventCountry "CZE"]
[SourceTitle "playchess.com"]
[Source "ChessBase"]
[SourceQuality "1"]
[TimeControl "40/5400+30:1800+30"]

1. e4 {[%emt 0:02:12]} e5 {[%emt 0:00:08]} 2. Nf3 {[%emt 0:00:04]} Nc6 {[%emt 0:00:12]} 3. Bc4 {[%emt 0:00:06]} Bc5 {[%emt 0:00:10]} 4. c3 {[%emt 0:00:07]} Nf6 {[%emt 0:00:11]} 5. d4 {[%emt 0:00:04]} exd4 {[%emt 0:00:15]} 6. e5 {[%emt 0:00:03]} d5 {[%emt 0:00:23]} 7. Bb5 {[%emt 0:00:05]} Ne4 {[%emt 0:00:17]} 8. cxd4 {[%emt 0:00:05]} Bb6 {[%emt 0:00:09]} 9. Be3 {[%emt 0:00:26]} O-O {[%emt 0:00:35]} 10. Nc3 {[%emt 0:00:09]} f6 {[%emt 0:02:19]} 11. exf6 {[%emt 0:03:35]} Rxf6 {[%emt 0:00:31]} 12. O-O {[%emt 0:16:43]} Bg4 {[%emt 0:00:58]} 13. Be2 {[%emt 0:00:07]} Qd6 {[%emt 0:00:36]} 14. Nd2 {[%emt 0:13:44]} Nxd2 {[%emt 0:04:15]} 15. Qxd2 {[%emt 0:00:05]} Bxe2 {[%emt 0:01:43]} 16. Nxe2 Raf8 {[%emt 0:01:38]} 17. a4 {[%emt 0:05:02]} a5 {[%emt 0:11:52]} 18. Nc1 {[%emt 0:15:40]} Qb4 {[%emt 0:01:18]} 19. Rd1 {[%emt 0:01:04]} Re6 {[%emt 0:03:56]} 20. Ne2 {[%emt 0:05:24]} Qxd2 {[%emt 0:00:35]} 21. Rxd2 {[%emt 0:00:02]} Ne7 {[%emt 0:01:14]} 22. Ng3 {[%emt 0:03:02]} Rc6 {[%emt 0:03:44]} 23. Rb1 {[%emt 0:08:59]} h6 {[%emt 0:10:36]} 24. h3 {[%emt 0:02:00]} Re6 {[%emt 0:04:26]} 25. Rdd1 {[%emt 0:02:31]} Ra8 {[%emt 0:04:45]} 26. Rd3 {[%emt 0:04:29]} c6 {[%emt 0:04:40]} 27. Bd2 {[%emt 0:13:26]} Bc7 {[%emt 0:00:46]} 28. Re1 {[%emt 0:00:17]} Rxe1+ {[%emt 0:00:08]} 29. Bxe1 {[%emt 0:00:01]} b5 {[%emt 0:03:26]} 30. Ne2 {[%emt 0:00:49]} Rb8 {[%emt 0:02:07]} 31. Rb3 {[%emt 0:01:11]} bxa4 {[%emt 0:01:54]} 32. Rxb8+ {[%emt 0:00:09]} Bxb8 {[%emt 0:00:01]} 33. Bxa5 {[%emt 0:01:29]} Bd6 {[%emt 0:00:07]} 34. Kf1 {[%emt 0:02:06]} a3 {[%emt 0:00:18]} 35. bxa3 {[%emt 0:00:04]} Bxa3 {[%emt 0:00:05]} 36. Ke1 {[%emt 0:01:23]} c5 {[%emt 0:00:49]} 37. dxc5 {[%emt 0:00:05]} Bxc5 {[%emt 0:00:03]} 38. Nf4 {[%emt 0:00:51]} Kf7 {[%emt 0:01:03]} 39. Ke2 {[%emt 0:00:15]} Bd6 {[%emt 0:00:58]} 40. Nd3 {[%emt 0:00:14]} Nc6 {[%emt 0:00:39]} 41. Bd2 {[%emt 0:30:58]} h5 {[%emt 0:30:22]} 42. g4 {[%emt 0:00:34]} hxg4 {[%emt 0:00:06]} 1/2-1/2

[Event "Marienbad A2-GM 2024"]
[Site "Marianske Lazne"]
[Date "2024.01.20"]
[Round "9.9"]
[White "Besou, Hussain"]
[Black "Rasik, Vitezslav"]
[Result "0-1"]
[ECO "B06"]
[WhiteElo "2277"]
[BlackElo "2406"]
[Annotator "RC"]
[PlyCount "190"]
[EventDate "2024.01.10"]
[EventType "tourn"]
[EventCountry "CZE"]
[SourceTitle "playchess.com"]
[Source "ChessBase"]
[SourceQuality "1"]
[TimeControl "40/5400+30:1800+30"]

1. d4 {[%emt 0:00:03]} d6 {[%emt 0:01:31]} 2. e4 {[%emt 0:00:06]} g6 {[%emt 0:00:28]} 3. Nc3 {[%emt 0:01:36]} Bg7 {[%emt 0:00:15]} 4. Be3 {[%emt 0:00:17]} c6 {[%emt 0:00:18]} 5. Qd2 {[%emt 0:00:15]} b5 {[%emt 0:00:23]} 6. Bd3 {[%emt 0:04:48]} Nd7 {[%emt 0:03:51]} 7. Nf3 {[%emt 0:02:49]} Qc7 {[%emt 0:03:23]} 8. O-O {[%emt 0:02:18]} Ngf6 {[%emt 0:01:06]} 9. Bh6 {[%emt 0:08:38]} O-O {[%emt 0:00:29]} 10. Ne2 {[%emt 0:00:41]} e5 {[%emt 0:07:37]} 11. c3 {[%emt 0:04:35]} Kh8 {[%emt 0:11:05]} 12. Bxg7+ {[%emt 0:11:16]} Kxg7 {[%emt 0:01:17]} 13. Ng3 {[%emt 0:00:27]} Ng8 {[%emt 0:07:08]} 14. a4 {[%emt 0:02:55]} Rb8 {[%emt 0:02:18]} 15. axb5 {[%emt 0:01:24]} cxb5 {[%emt 0:00:05]} 16. Qe3 {[%emt 0:08:48]} a6 {[%emt 0:03:08]} 17. Nd2 {[%emt 0:01:20]} Nb6 {[%emt 0:05:55]} 18. f4 {[%emt 0:03:25]} Na4 {[%emt 0:03:50]} 19. Rab1 {[%emt 0:11:01]} b4 {[%emt 0:04:12]} 20. c4 {[%emt 0:08:14]} exd4 {[%emt 0:04:05]} 21. Qxd4+ {[%emt 0:00:08]} f6 {[%emt 0:01:46]} 22. Nb3 {[%emt 0:03:21]} Qb6 {[%emt 0:03:53]} 23. Rfd1 {[%emt 0:02:55]} Qxd4+ {[%emt 0:05:13]} 24. Nxd4 {[%emt 0:00:07]} Nc5 {[%emt 0:01:07]} 25. b3 {[%emt 0:04:28]} Bb7 {[%emt 0:02:39]} 26. Bc2 {[%emt 0:00:37]} Nh6 {[%emt 0:01:28]} 27. Re1 {[%emt 0:04:01]} Rfe8 {[%emt 0:01:22]} 28. Re2 {[%emt 0:02:22]} Re7 {[%emt 0:02:22]} 29. Rbe1 {[%emt 0:01:32]} Rbe8 {[%emt 0:00:31]} 30. Nf3 {[%emt 0:02:53]} Ne6 {[%emt 0:05:03]} 31. Rd2 {[%emt 0:03:02]} Nf7 {[%emt 0:02:14]} 32. f5 {[%emt 0:00:57]} Nc5 {[%emt 0:01:44]} 33. Rde2 {[%emt 0:00:51]} Ba8 {[%emt 0:04:56]} 34. h4 {[%emt 0:01:21]} Rg8 {[%emt 0:05:31]} 35. fxg6 {[%emt 0:01:09]} hxg6 {[%emt 0:00:02]} 36. h5 {[%emt 0:00:10]} Kf8 {[%emt 0:00:17]} 37. hxg6 {[%emt 0:01:18]} Rxg6 {[%emt 0:00:12]} 38. Nf5 {[%emt 0:01:05]} Re8 {[%emt 0:01:01]} 39. Kf2 {[%emt 0:01:55]} Rg4 {[%emt 0:01:15]} 40. Ng3 {[%emt 0:00:23]} Bb7 {[%emt 0:04:06]} 41. Re3 {[%emt 0:12:24]} Ke7 {[%emt 0:08:43]} 42. Rh1 {[%emt 0:04:55]} Reg8 {[%emt 0:05:05]} 43. Nd4 {[%emt 0:01:35]} Ng5 {[%emt 0:05:19]} 44. Ndf5+ {[%emt 0:07:10]} Kd7 {[%emt 0:02:00]} 45. Rh4 {[%emt 0:01:16]} Rxh4 {[%emt 0:04:26]} 46. Nxh4 {[%emt 0:00:06]} Re8 {[%emt 0:00:25]} 47. Nh5 {[%emt 0:02:01]} Kc7 {[%emt 0:01:38]} 48. Nf5 {[%emt 0:02:02]} Ngxe4+ {[%emt 0:01:13]} 49. Ke1 {[%emt 0:00:22]} Re5 {[%emt 0:01:50]} 50. g4 {[%emt 0:00:24]} Bc8 {[%emt 0:00:46]} 51. Nf4 {[%emt 0:00:59]} Bxf5 {[%emt 0:01:27]} 52. gxf5 {[%emt 0:00:06]} Nc3 {[%emt 0:00:51]} 53. Kd2 {[%emt 0:01:15]} Rxe3 {[%emt 0:00:53]} 54. Kxe3 {[%emt 0:00:06]} Kd7 {[%emt 0:00:22]} 55. Kd4 {[%emt 0:00:20]} a5 {[%emt 0:00:25]} 56. Nh5 {[%emt 0:01:05]} Ke7 {[%emt 0:00:08]} 57. Nf4 {[%emt 0:00:05]} Ke8 {[%emt 0:01:11]} 58. Nd5 {[%emt 0:00:55]} Nxd5 {[%emt 0:01:23]} 59. cxd5 {[%emt 0:00:07]} a4 {[%emt 0:01:33]} 60. Kc4 {[%emt 0:01:12]} axb3 {[%emt 0:01:01]} 61. Bxb3 {[%emt 0:00:12]} Kd7 {[%emt 0:00:26]} 62. Kxb4 {[%emt 0:00:23]} Kc7 {[%emt 0:00:12]} 63. Bc2 {[%emt 0:00:13]} Kb6 {[%emt 0:00:06]} 64. Bb1 {[%emt 0:00:23]} Na6+ {[%emt 0:00:27]} 65. Kc4 {[%emt 0:00:05]} Ka5 {[%emt 0:00:09]} 66. Bc2 {[%emt 0:00:07]} Nc5 {[%emt 0:00:17]} 67. Bd1 {[%emt 0:00:56]} Nd7 {[%emt 0:00:22]} 68. Bc2 {[%emt 0:00:32]} Nb6+ {[%emt 0:00:29]} 69. Kd4 {[%emt 0:00:07]} Kb4 {[%emt 0:00:01]} 70. Bd3 {[%emt 0:01:23]} Na4 {[%emt 0:00:44]} 71. Ba6 {[%emt 0:00:35]} Nc5 {[%emt 0:00:43]} 72. Bc8 {[%emt 0:00:50]} Nb3+ {[%emt 0:00:23]} 73. Kd3 {[%emt 0:00:22]} Kc5 {[%emt 0:00:17]} 74. Be6 {[%emt 0:00:06]} Na5 {[%emt 0:00:44]} 75. Kc3 {[%emt 0:01:06]} Nc4 {[%emt 0:00:35]} 76. Kd3 {[%emt 0:00:06]} Nb6 {[%emt 0:00:21]} 77. Ke4 {[%emt 0:00:05]} Kc4 {[%emt 0:00:21]} 78. Bf7 {[%emt 0:00:18]} Na4 {[%emt 0:00:18]} 79. Be6 {[%emt 0:02:15]} Nc3+ {[%emt 0:00:07]} 80. Ke3 {[%emt 0:00:37]} Kc5 {[%emt 0:00:07]} 81. Kd3 {[%emt 0:01:11]} Nxd5 {[%emt 0:00:20]} 82. Ke4 {[%emt 0:00:23]} Nb4 {[%emt 0:00:31]} 83. Bb3 {[%emt 0:00:22]} d5+ {[%emt 0:00:18]} 84. Ke3 {[%emt 0:00:03]} Kd6 {[%emt 0:00:16]} 85. Kd4 {[%emt 0:00:08]} Nc6+ {[%emt 0:00:07]} 86. Kd3 {[%emt 0:00:04]} Ke5 {[%emt 0:00:04]} 87. Ke3 {[%emt 0:00:13]} Nd4 {[%emt 0:00:09]} 88. Bd1 {[%emt 0:00:14]} Nxf5+ {[%emt 0:00:06]} 89. Kd3 {[%emt 0:00:28]} Nd4 {[%emt 0:00:12]} 90. Bh5 {[%emt 0:00:17]} f5 {[%emt 0:00:05]} 91. Bd1 {[%emt 0:00:02]} f4 {[%emt 0:00:08]} 92. Bg4 {[%emt 0:00:03]} Ne6 {[%emt 0:00:47]} 93. Bf3 {[%emt 0:00:17]} Kd6 {[%emt 0:02:46]} 94. Bg4 {[%emt 0:00:15]} Nd8 {[%emt 0:00:32]} 95. Bh5 {[%emt 0:01:07]} Kc5 {[%emt 0:00:21]} 0-1

[Event "Marienbad A2-GM 2024"]
[Site "Marianske Lazne"]
[Date "2024.01.20"]
[Round "9.10"]
[White "Plat, Vojtech"]
[Black "Agdelen, Huseyin Can"]
[Result "1-0"]
[ECO "A33"]
[WhiteElo "2516"]
[BlackElo "2409"]
[Annotator "ChessBase"]
[PlyCount "73"]
[EventDate "2024.01.10"]
[EventType "tourn"]
[EventCountry "CZE"]
[SourceTitle "playchess.com"]
[Source "ChessBase"]
[SourceQuality "1"]
[TimeControl "40/5400+30:1800+30"]

1. d4 {[%emt 0:00:03]} Nf6 {[%emt 0:14:23]} 2. c4 {[%emt 0:00:07]} c5 {[%emt 0:00:15]} 3. Nf3 {[%emt 0:00:13]} cxd4 {[%emt 0:00:36]} 4. Nxd4 {[%emt 0:00:04]} Nc6 {[%emt 0:03:53]} 5. Nc3 {[%emt 0:00:12]} e6 {[%emt 0:00:08]} 6. g3 {[%emt 0:00:25]} Qb6 {[%emt 0:02:04]} 7. e3 {[%emt 0:07:42]} Bb4 {[%emt 0:07:05]} 8. Bg2 {[%emt 0:01:46]} Ne5 {[%emt 0:02:59]} 9. O-O {[%emt 0:04:19]} Nxc4 {[%emt 0:10:41]} 10. Na4 {[%emt 0:00:16]} Qa6 {[%emt 0:01:36]} 11. Qb3 {[%emt 0:00:54]} Nb6 {[%emt 0:09:39]} 12. Qxb4 {[%emt 0:00:30]} Qxa4 {[%emt 0:00:15]} 13. Qd6 {[%emt 0:01:20]} Nc4 {[%emt 0:04:30]} 14. Qf4 {[%emt 0:05:46]} Qa6 {[%emt 0:04:03]} 15. b3 {[%emt 0:00:44]} e5 {[%emt 0:02:46]} 16. Qh4 {[%emt 0:00:11]} exd4 {[%emt 0:18:52]} 17. bxc4 {[%emt 0:00:09]} Qxc4 {[%emt 0:03:28]} 18. Ba3 {[%emt 0:00:19]} Qa6 {[%emt 0:05:32]} 19. Bc5 {[%emt 0:01:25]} dxe3 {[%emt 0:00:47]} 20. Qg5 {[%emt 0:03:33]} e2 {[%emt 0:03:59]} 21. Rfe1 {[%emt 0:00:06]} d5 {[%emt 0:00:55]} 22. Bf3 {[%emt 0:01:05]} h6 {[%emt 0:01:09]} 23. Qxg7 {[%emt 0:01:27]} Rg8 {[%emt 0:00:23]} 24. Qxh6 {[%emt 0:05:31]} Ne4 {[%emt 0:00:17]} 25. Qe3 {[%emt 0:00:12]} Be6 {[%emt 0:00:46]} 26. Bd4 {[%emt 0:00:32]} Nd6 {[%emt 0:00:44]} 27. Bxe2 {[%emt 0:00:58]} Nc4 {[%emt 0:01:05]} 28. Bxc4 {[%emt 0:05:50]} dxc4 {[%emt 0:00:12]} 29. Bf6 {[%emt 0:00:04]} Rg6 {[%emt 0:00:12]} 30. Qd4 {[%emt 0:00:48]} Qb6 {[%emt 0:00:15]} 31. Qh4 {[%emt 0:00:05]} Qc5 {[%emt 0:01:56]} 32. Rad1 {[%emt 0:02:52]} c3 {[%emt 0:00:11]} 33. Bd4 {[%emt 0:04:27]} Qe7 {[%emt 0:00:08]} 34. Qh8+ {[%emt 0:00:07]} Qf8 {[%emt 0:00:05]} 35. Qe5 {[%emt 0:00:03]} Qe7 {[%emt 0:01:31]} 36. Bc5 {[%emt 0:00:38]} Qf6 {[%emt 0:00:35]} 37. Qd6 {[%emt 0:00:05]} 1-0